bitfinex-derivatives/quotes_BTCF0:USTF0_20230702
["timestamp","ask_amount","ask_price","bid_price","bid_amount"]
[1688334389039,0.35976426,30610.0,30609.0,0.2482]
[1688334389343,0.3597648,30610.0,30609.0,0.2482]
[1688334390537,0.29218506,30610.0,30609.0,0.2482]
[1688334390942,0.35976482,30610.0,30609.0,0.2482]
[1688334391446,0.35976448,30610.0,30609.0,0.2482]
[1688334392651,0.35856448,30610.0,30608.0,0.2477]
[1688334392848,0.26704945,30609.0,30608.0,0.2477]
[1688334393044,0.28665045,30609.0,30608.0,0.2477]
[1688334393231,0.29169413,30609.0,30608.0,0.2477]
[1688334393637,0.35927411,30609.0,30608.0,0.2477]
[1688334395049,0.29169413,30609.0,30608.0,0.2477]
[1688334395239,0.35927382,30609.0,30608.0,0.2477]
[1688334396751,0.29169413,30609.0,30608.0,0.2477]
[1688334396946,0.35927405,30609.0,30608.0,0.2477]
[1688334398151,0.72007405,30609.0,30608.0,0.2477]
[1688334398646,0.35927405,30609.0,30608.0,0.2477]
[1688334398954,0.65249413,30609.0,30608.0,0.2477]
[1688334399147,0.72007403,30609.0,30608.0,0.2477]
[1688334399348,0.71503035,30609.0,30606.0,0.59294644]
[1688334399649,0.265502,30607.0,30606.0,0.59294644]
[1688334400353,0.28435145,30607.0,30606.0,0.59294644]
[1688334402347,0.28565145,30607.0,30606.0,0.59294644]
[1688334402853,0.28565145,30607.0,30606.0,0.5669]
[1688334408846,0.64645145,30607.0,30606.0,0.5669]
[1688334412458,0.64745145,30607.0,30606.0,0.5674]
[1688334414963,0.28665145,30607.0,30606.0,0.5674]
[1688334415169,0.64745145,30607.0,30606.0,0.5674]
[1688334415864,0.64745145,30607.0,30606.0,0.587003]
[1688334427859,0.64745145,30607.0,30606.0,0.5674]
[1688334432679,0.39925145,30607.0,30606.0,0.5674]
[1688334433882,0.03845145,30607.0,30606.0,0.5674]
[1688334434081,0.39925145,30607.0,30606.0,0.5674]
[1688334442501,0.64745145,30607.0,30606.0,0.5674]
[1688334446493,0.7150349,30607.0,30606.0,0.5674]
[1688334446893,0.71503489,30607.0,30606.0,0.5674]
[1688334448706,0.35423489,30607.0,30606.0,0.5674]
[1688334448998,0.71503489,30607.0,30606.0,0.5674]
[1688334453508,0.64745145,30607.0,30606.0,0.5674]
[1688334457914,0.39925145,30607.0,30606.0,0.5674]
[1688334459408,0.71503673,30607.0,30606.0,0.3192]
[1688334459602,0.71503673,30607.0,30605.0,0.2477]
[1688334459804,0.28455245,30606.0,30605.0,0.2477]
[1688334460910,0.35213872,30606.0,30605.0,0.2477]
[1688334461110,0.35213866,30606.0,30605.0,0.2477]
[1688334461917,0.29105245,30606.0,30605.0,0.2477]
[1688334462216,0.29105245,30606.0,30604.0,0.00049008]
[1688334462417,0.64635245,30605.0,30604.0,0.00049008]
[1688334462610,0.70074796,30605.0,30604.0,0.00049008]
[1688334473518,0.70074796,30605.0,30604.0,0.00373555]
[1688334473727,0.70074796,30605.0,30604.0,0.00049008]
[1688334473928,0.70074796,30605.0,30604.0,0.00394223]
[1688334475423,0.70074796,30605.0,30604.0,0.00049008]
[1688334479427,0.019605,30603.0,30601.0,0.3014]
[1688334479624,0.628605,30602.0,30601.0,0.3014]
[1688334480129,0.64745445,30602.0,30599.0,0.2475]
[1688334480431,0.2482,30600.0,30599.0,0.2475]
[1688334480618,0.267807,30600.0,30599.0,0.2475]
[1688334481330,0.28665645,30600.0,30599.0,0.2475]
[1688334485923,0.64745645,30600.0,30599.0,0.2475]
[1688334487828,0.64745645,30600.0,30598.0,0.2475]
[1688334488029,0.267807,30599.0,30598.0,0.2475]
[1688334488229,0.28665645,30599.0,30598.0,0.2475]
[1688334492136,0.28665645,30599.0,30598.0,0.25512212]
[1688334492536,0.28665645,30599.0,30598.0,0.00762212]
[1688334496238,0.64745645,30599.0,30598.0,0.00762212]
[1688334496840,0.28665645,30599.0,30598.0,0.00762212]
[1688334497028,0.64745645,30599.0,30598.0,0.00762212]
[1688334498338,0.28665645,30599.0,30598.0,0.00762212]
[1688334498539,0.64745645,30599.0,30598.0,0.00762212]
[1688334523760,0.64745645,30599.0,30598.0,0.00975815]
[1688334530567,0.2982,30598.0,30597.0,0.00049019]
[1688334530861,0.63825296,30598.0,30597.0,0.00049019]
[1688334533061,1.35985296,30598.0,30597.0,0.00049019]
[1688334533764,0.01884945,30597.0,30594.0,0.3105]
[1688334533966,0.62861,30595.0,30594.0,0.3105]
[1688334534666,0.64745945,30595.0,30594.0,0.3105]
[1688334536062,0.64745945,30595.0,30594.0,0.21204377]
[1688334537261,0.64745945,30595.0,30591.0,0.00049027]
[1688334537463,0.6078,30592.0,30591.0,0.00049027]
[1688334537665,0.627412,30592.0,30591.0,0.00049027]
[1688334538059,0.64626145,30592.0,30591.0,0.00049027]
[1688334538270,0.64626145,30592.0,30591.0,0.01488346]
[1688334539771,0.69626145,30592.0,30591.0,0.01488346]
[1688334542969,0.69626145,30592.0,30591.0,0.00049027]
[1688334551783,1.05706145,30592.0,30591.0,0.00049027]
[1688334553081,1.05706145,30592.0,30591.0,0.01612424]
[1688334559173,0.33546145,30592.0,30591.0,0.01612424]
[1688334559380,1.05706145,30592.0,30591.0,0.01612424]
[1688334562676,1.05706145,30592.0,30591.0,0.00049027]
[1688334572093,0.019612,30592.0,30591.0,0.64655172]
[1688334572396,0.2471,30597.0,30591.0,0.65305172]
[1688334572594,0.266709,30597.0,30596.0,0.2482]
[1688334572898,0.2471,30597.0,30596.0,0.28603869]
[1688334573097,0.2471,30597.0,30596.0,0.29251889]
[1688334573393,0.2471,30597.0,30596.0,0.29901889]
[1688334573586,0.2471,30597.0,30596.0,0.31786834]
[1688334573993,0.00049027,30598.0,30596.0,0.31786834]
[1688334574193,0.00049027,30598.0,30597.0,0.66568714]
[1688334574395,0.00049027,30598.0,30597.0,0.67218714]
[1688334574590,0.00049027,30598.0,30597.0,0.67646917]
[1688334576503,0.00049027,30598.0,30597.0,1.03726917]
[1688334581694,0.00049027,30598.0,30597.0,1.06292691]
[1688334585900,0.00049027,30598.0,30597.0,1.03726917]
[1688334587107,0.26719827,30598.0,30597.0,1.00019003]
[1688334587609,0.26719827,30598.0,30597.0,1.01841972]
[1688334587813,0.26719827,30598.0,30597.0,1.00019003]
[1688334588212,0.26719827,30598.0,30597.0,1.01191972]
[1688334588708,0.26719827,30598.0,30597.0,0.99369003]
[1688334592307,0.26719827,30598.0,30597.0,0.63289003]
[1688334592610,0.26719827,30598.0,30597.0,0.38469003]
[1688334599726,0.26719827,30598.0,30597.0,0.02389003]
[1688334606126,0.26719827,30598.0,30597.0,0.02713862]
[1688334608245,0.26719827,30598.0,30597.0,0.27533862]
[1688334625240,0.26719827,30598.0,30597.0,0.29418807]
[1688334626342,0.26719827,30598.0,30597.0,0.27533862]
[1688334632236,0.26759083,30598.0,30597.0,0.27533862]
[1688334638052,0.26759083,30598.0,30597.0,0.00753062]
[1688334638550,0.26759083,30598.0,30593.0,0.65466312]
[1688334638751,0.32389083,30598.0,30597.0,0.00757463]
[1688334638945,0.57209083,30598.0,30593.0,0.928909]
[1688334639145,0.2472,30594.0,30593.0,0.928909]
[1688334639347,0.26681,30594.0,30593.0,0.928909]
[1688334639955,0.58041,30594.0,30593.0,0.928909]
[1688334640150,0.58080091,30594.0,30593.0,0.9093]
[1688334641949,0.58080091,30594.0,30593.0,0.5485]
[1688334642148,0.58080091,30594.0,30593.0,0.2482]
[1688334642549,0.58180091,30594.0,30592.0,6e-05]
[1688334642743,0.2472,30593.0,30592.0,6e-05]
[1688334643054,0.32120651,30593.0,30592.0,6e-05]
[1688334643256,0.321597,30593.0,30592.0,6e-05]
[1688334644156,0.321597,30593.0,30592.0,0.00709476]
[1688334646346,0.682397,30593.0,30592.0,0.00709476]
[1688334654162,0.321597,30593.0,30592.0,0.00709476]
[1688334654961,0.34784143,30593.0,30592.0,0.00709476]
[1688334669458,0.34784143,30593.0,30592.0,0.01382116]
[1688334671471,0.17969359,30597.0,30592.0,0.64243316]
[1688334671472,0.12319359,30597.0,30592.0,0.64243316]
[1688334671770,0.00049027,30598.0,30597.0,0.2468]
[1688334671969,0.00049027,30598.0,30597.0,0.55018814]
[1688334672266,0.00085914,30598.0,30597.0,0.55888853]
[1688334674771,0.00085914,30598.0,30597.0,0.87248853]
[1688334684672,0.00085914,30598.0,30597.0,0.87898853]
[1688334685368,0.00049027,30598.0,30597.0,0.87898853]
[1688334698487,0.00049027,30598.0,30597.0,1.60058853]
[1688334699086,0.00049027,30598.0,30597.0,1.59408853]
[1688334700187,0.00085934,30598.0,30597.0,1.59408853]
[1688334702575,0.00085934,30598.0,30597.0,1.34728853]
[1688334708088,0.00085934,30598.0,30597.0,0.62568853]
[1688334708395,0.00085934,30598.0,30597.0,1.34728853]
[1688334712901,0.00085934,30598.0,30597.0,0.62568853]
[1688334713097,0.00085934,30598.0,30597.0,1.34728853]
[1688334724913,0.00085934,30598.0,30597.0,0.62568853]
[1688334725217,0.00085934,30598.0,30597.0,1.34728853]
[1688334732614,0.00085934,30598.0,30597.0,1.59548853]
[1688334735124,0.00085934,30598.0,30597.0,0.87388853]
[1688334735313,0.00085934,30598.0,30597.0,1.59548853]
[1688334738006,0.00085934,30598.0,30597.0,0.87388853]
[1688334738206,0.00085934,30598.0,30597.0,1.59548853]
[1688334740420,0.00085934,30598.0,30597.0,0.87388853]
[1688334740726,0.00085934,30598.0,30597.0,1.59548853]
[1688334745128,0.00735934,30598.0,30597.0,1.24480939]
[1688334745336,0.27516734,30598.0,30597.0,0.00870039]
[1688334745532,0.27516734,30598.0,30597.0,0.02830939]
[1688334745739,0.58766734,30598.0,30597.0,0.00870039]
[1688334745943,0.58766734,30598.0,30594.0,0.426165]
[1688334746130,0.58766734,30598.0,30594.0,0.673865]
[1688334746131,0.2472,30595.0,30594.0,0.673865]
[1688334746330,0.26681,30595.0,30594.0,0.673865]
[1688334746736,0.26681,30595.0,30594.0,0.6085]
[1688334747236,0.26718093,30595.0,30594.0,0.6085]
[1688334749142,0.26718093,30595.0,30594.0,0.61705464]
[1688334750036,0.26718093,30595.0,30594.0,0.25625464]
[1688334758251,0.26818093,30595.0,30594.0,0.00855464]
[1688334760348,0.56878093,30595.0,30594.0,0.00855464]
[1688334762441,0.56878093,30595.0,30591.0,0.00049027]
[1688334762658,0.2482,30592.0,30591.0,0.00049027]
[1688334762954,0.267812,30592.0,30591.0,0.00049027]
[1688334763349,0.32257983,30592.0,30591.0,0.00049027]
[1688334763853,0.62617983,30592.0,30591.0,0.00049027]
[1688334764153,0.62617983,30592.0,30591.0,0.00911441]
[1688334806976,0.62617983,30592.0,30591.0,0.01159836]
[1688334809384,0.59819167,30592.0,30591.0,0.01159836]
[1688334809681,0.65258718,30592.0,30591.0,0.01159836]
[1688334811288,0.65258718,30592.0,30591.0,0.03121036]
[1688334813793,1.01338718,30592.0,30591.0,0.03121036]
[1688334815584,0.95899167,30592.0,30591.0,0.03121036]
[1688334816291,0.95899167,30592.0,30591.0,0.01159836]
[1688334821092,0.95899167,30592.0,30591.0,0.03121036]
[1688334823497,0.95899167,30592.0,30591.0,0.01159836]
[1688334824197,0.59819167,30592.0,30591.0,0.01159836]
[1688334825801,0.59819167,30592.0,30591.0,0.03121036]
[1688334828294,0.5984736,30592.0,30591.0,0.03121036]
[1688334835293,0.5984736,30592.0,30591.0,0.01159836]
[1688334835496,0.5984736,30592.0,30591.0,0.01124245]
[1688334835792,0.5984736,30592.0,30587.0,0.2468]
[1688334835995,0.267814,30588.0,30587.0,0.5582]
[1688334840415,0.267814,30588.0,30587.0,0.577815]
[1688334842506,0.267814,30588.0,30587.0,0.577715]
[1688334843009,0.267814,30588.0,30587.0,0.58617496]
[1688334844298,0.26846826,30588.0,30587.0,0.58617496]
[1688334845800,0.26846826,30588.0,30587.0,0.6232541]
[1688334846001,0.02026826,30588.0,30587.0,0.6232541]
[1688334849004,0.02026826,30588.0,30587.0,1.3448541]
[1688334849005,0.00065426,30588.0,30587.0,1.3448541]
[1688334849208,0.058843,30590.0,30587.0,1.3448541]
[1688334849409,0.058843,30590.0,30589.0,0.266413]
[1688334849814,0.058843,30590.0,30589.0,0.27492188]
[1688334850013,0.058843,30590.0,30589.0,0.31200102]
[1688334850516,0.05949447,30590.0,30589.0,0.31200102]
[1688334853116,0.05949447,30590.0,30589.0,0.67280102]
[1688334854406,0.05949447,30590.0,30589.0,0.65457133]
[1688334855306,0.05949447,30590.0,30589.0,0.67280102]
[1688334856819,0.05949447,30590.0,30589.0,0.31200102]
[1688334857014,0.05949447,30590.0,30589.0,0.67280102]
[1688334858227,0.05949447,30590.0,30589.0,0.65457133]
[1688334858920,0.05949447,30590.0,30589.0,0.67280102]
[1688334860021,0.05949447,30590.0,30589.0,0.65457133]
[1688334860224,0.05949447,30590.0,30589.0,0.67280102]
[1688334862822,0.05949447,30590.0,30589.0,0.31200102]
[1688334863129,0.05949447,30590.0,30589.0,0.67280102]
[1688334863326,0.38059447,30590.0,30589.0,0.67280102]
[1688334866029,0.32175147,30590.0,30589.0,0.67280102]
[1688334866224,0.00065147,30590.0,30589.0,0.67280102]
[1688334866939,0.00065147,30590.0,30576.0,0.1307559]
[1688334866940,0.05,30578.0,30576.0,0.1307559]
[1688334867135,0.988321,30577.0,30574.0,0.09806699]
[1688334867423,0.988321,30577.0,30573.0,0.06538704]
[1688334867424,0.019623,30574.0,30573.0,0.06538704]
[1688334867623,0.019623,30574.0,30570.0,0.2482]
[1688334867624,0.627623,30574.0,30570.0,0.2482]
[1688334867831,0.628625,30571.0,30569.0,0.00017966]
[1688334868022,0.267826,30570.0,30569.0,0.00017966]
[1688334868219,0.62913496,30570.0,30568.0,0.3056]
[1688334868419,0.38093496,30570.0,30569.0,0.2482]
[1688334868626,0.26603496,30570.0,30569.0,0.2482]
[1688334869024,0.26603496,30570.0,30569.0,0.28441039]
[1688334869228,0.265526,30570.0,30569.0,0.28441039]
[1688334871227,0.26614704,30570.0,30569.0,0.28441039]
[1688334871832,0.05324704,30570.0,30569.0,0.28441039]
[1688334872033,0.05947304,30570.0,30569.0,0.28441039]
[1688334872233,0.058852,30570.0,30569.0,0.28441039]
[1688334872531,0.019626,30570.0,30569.0,0.28441039]
[1688334873247,0.02024704,30570.0,30569.0,0.28441039]
[1688334873934,0.01958404,30570.0,30569.0,0.28441039]
[1688334881840,0.01958404,30570.0,30569.0,0.2662188]
[1688334882532,0.26778404,30570.0,30569.0,0.28441039]
[1688334882932,0.26778404,30570.0,30569.0,0.2662188]
[1688334883138,0.26778404,30570.0,30569.0,0.28441039]
[1688334883433,0.26778404,30570.0,30569.0,0.29091039]
[1688334883943,0.26568404,30570.0,30569.0,0.29091039]
[1688334884640,0.26568404,30570.0,30569.0,0.28441039]
[1688334886742,0.26562404,30570.0,30569.0,0.28441039]
[1688334893151,0.62642404,30570.0,30569.0,0.28441039]
[1688334899059,0.01952404,30570.0,30569.0,0.28441039]
[1688334899354,0.05936867,30573.0,30571.0,0.019625]
[1688334899554,0.05936867,30573.0,30572.0,0.628624]
[1688334899749,0.05936867,30573.0,30572.0,0.64496384]
[1688334899949,0.00049067,30573.0,30572.0,0.64496384]
[1688334900155,0.00049067,30573.0,30572.0,0.66315543]
[1688334903963,0.00049067,30573.0,30572.0,0.30235543]
[1688334904256,0.00049067,30573.0,30572.0,0.66315543]
[1688334910259,0.00049067,30573.0,30572.0,0.72854247]
[1688334911862,0.00049067,30573.0,30572.0,0.66315543]
[1688334912565,0.00049067,30573.0,30572.0,0.68978966]
[1688334914561,0.00049067,30573.0,30572.0,0.75509007]
[1688334914757,0.00049067,30573.0,30572.0,0.39429007]
[1688334914962,0.00049067,30573.0,30572.0,0.75509007]
[1688334915167,0.00049067,30573.0,30572.0,0.68978966]
[1688334915360,0.00049067,30573.0,30572.0,0.684185]
[1688334916066,0.00049067,30573.0,30572.0,0.74948525]
[1688334917862,0.00049067,30573.0,30572.0,1.05428525]
[1688334918266,0.00049067,30573.0,30572.0,0.988985]
[1688334919273,0.00049067,30573.0,30572.0,1.05428525]
[1688334920168,0.00049067,30573.0,30572.0,0.988985]
[1688334930380,5.9e-07,30573.0,30572.0,0.988985]
[1688334932282,0.00037606,30573.0,30572.0,0.988985]
[1688334935485,5.9e-07,30573.0,30572.0,0.988985]
[1688334939290,0.00037652,30573.0,30572.0,0.988985]
[1688334944188,0.00037652,30573.0,30572.0,0.628185]
[1688334944381,0.00037652,30573.0,30572.0,0.988985]
[1688334947694,0.00037652,30573.0,30572.0,0.628185]
[1688334947881,0.00037652,30573.0,30572.0,0.988985]
[1688334948391,0.00031652,30573.0,30572.0,0.628185]
[1688334948692,0.00031652,30573.0,30572.0,0.988985]
[1688334949388,0.019622,30575.0,30572.0,0.988985]
[1688334949594,0.019622,30575.0,30574.0,0.2468]
[1688334949789,0.340022,30575.0,30574.0,0.28461459]
[1688334950094,0.340022,30575.0,30574.0,0.27716562]
[1688334950392,0.34039515,30575.0,30574.0,0.29535721]
[1688334952492,0.34039515,30575.0,30574.0,0.27716562]
[1688334955590,0.34039515,30575.0,30574.0,0.29535721]
[1688334956387,0.34039515,30575.0,30574.0,0.27716562]
[1688334956895,0.34039515,30575.0,30574.0,0.29535721]
[1688334958190,0.34039515,30575.0,30574.0,0.27716562]
[1688334959396,0.34039515,30575.0,30574.0,0.29535721]
[1688334962901,0.34039515,30575.0,30574.0,0.65615721]
[1688334967594,0.6127446,30575.0,30574.0,0.01074262]
[1688334968199,0.63097429,30575.0,30574.0,0.01074262]
[1688334968401,0.63097429,30575.0,30573.0,0.019623]
[1688334968596,0.28427914,30574.0,30573.0,0.019623]
[1688334968794,0.30390214,30574.0,30573.0,0.019623]
[1688334969404,0.30436896,30574.0,30573.0,0.019623]
[1688334972009,0.28551951,30574.0,30573.0,0.019623]
[1688334973502,0.30436896,30574.0,30573.0,0.019623]
[1688334974002,0.28613927,30574.0,30573.0,0.019623]
[1688334974212,0.30436896,30574.0,30573.0,0.03036986]
[1688334975790,0.28613927,30574.0,30573.0,0.03036986]
[1688334976406,0.30436896,30574.0,30573.0,0.03036986]
[1688334976905,0.02008982,30574.0,30573.0,0.27856986]
[1688334977505,0.02008982,30574.0,30573.0,0.29676145]
[1688334978108,0.38088982,30574.0,30573.0,0.27856986]
[1688334978806,0.02008982,30574.0,30573.0,0.27856986]
[1688334979007,0.38088982,30574.0,30573.0,0.29676145]
[1688334980101,0.02008982,30574.0,30573.0,0.29676145]
[1688334980307,0.38088982,30574.0,30573.0,0.27856986]
[1688334984901,0.38088982,30574.0,30573.0,0.29676145]
[1688334985110,0.38088982,30574.0,30573.0,0.27856986]
[1688334988512,0.02008982,30574.0,30573.0,0.27856986]
[1688334988713,0.38088982,30574.0,30573.0,0.27856986]
[1688334988912,0.38088982,30574.0,30573.0,0.29676145]
[1688334989216,0.38088982,30574.0,30573.0,0.27856986]
[1688334992511,0.38088982,30574.0,30573.0,0.29676145]
[1688334992912,0.38088982,30574.0,30573.0,0.27856986]
[1688334993617,0.39911951,30574.0,30573.0,0.27856986]
[1688334993915,0.38088982,30574.0,30573.0,0.27856986]
[1688334994515,0.39911951,30574.0,30573.0,0.27856986]
[1688334995322,0.03831951,30574.0,30573.0,0.27856986]
[1688334995508,0.38088982,30574.0,30573.0,0.27856986]
[1688334995708,0.39911951,30574.0,30573.0,0.27856986]
[1688334997109,0.03831951,30574.0,30573.0,0.27856986]
[1688334997309,0.39911951,30574.0,30573.0,0.27856986]
[1688334997518,0.38088982,30574.0,30573.0,0.27856986]
[1688334997809,0.39911951,30574.0,30573.0,0.27856986]
[1688334998013,0.41796896,30574.0,30573.0,0.27856986]
[1688334998413,0.39973927,30574.0,30573.0,0.27856986]
[1688334998616,0.02008982,30574.0,30573.0,0.27856986]
[1688334998919,0.38088982,30574.0,30573.0,0.27856986]
[1688334999418,0.38088982,30574.0,30573.0,0.29676145]
[1688334999720,0.02008982,30574.0,30573.0,0.29676145]
[1688334999915,0.38088982,30574.0,30573.0,0.29676145]
[1688335000118,0.38088982,30574.0,30573.0,0.27856986]
[1688335002220,0.38088982,30574.0,30573.0,0.29676145]
[1688335002410,0.38088982,30574.0,30573.0,0.27856986]
[1688335003019,0.02008982,30574.0,30573.0,0.27856986]
[1688335003219,0.38088982,30574.0,30573.0,0.27856986]
[1688335004313,0.62788982,30574.0,30573.0,0.27856986]
[1688335004612,0.26708982,30574.0,30573.0,0.27856986]
[1688335004812,0.62788982,30574.0,30573.0,0.27856986]
[1688335007136,0.26708982,30574.0,30573.0,0.27856986]
[1688335007320,0.62788982,30574.0,30573.0,0.27856986]
[1688335009827,0.62782982,30574.0,30573.0,0.27856986]
[1688335011731,0.26702982,30574.0,30573.0,0.27856986]
[1688335011930,0.62782982,30574.0,30573.0,0.27856986]
[1688335012120,0.26702982,30574.0,30573.0,0.27856986]
[1688335012320,0.62782982,30574.0,30573.0,0.27856986]
[1688335013420,0.26702982,30574.0,30573.0,0.27856986]
[1688335013620,0.62782982,30574.0,30573.0,0.27856986]
[1688335014733,0.26702982,30574.0,30573.0,0.27856986]
[1688335014932,0.62782982,30574.0,30573.0,0.27856986]
[1688335015529,0.64605951,30574.0,30573.0,0.27856986]
[1688335016430,0.64605951,30574.0,30573.0,0.25894686]
[1688335017532,0.62782982,30574.0,30573.0,0.25894686]
[1688335019336,0.64605951,30574.0,30573.0,0.25894686]
[1688335019523,0.62782982,30574.0,30573.0,0.25894686]
[1688335020534,0.64605951,30574.0,30573.0,0.25894686]
[1688335020735,0.62782982,30574.0,30573.0,0.25894686]
[1688335022636,0.62902982,30574.0,30573.0,0.25894686]
[1688335024238,0.64725951,30574.0,30573.0,0.25894686]
[1688335026149,0.049058,30575.0,30573.0,1.27856986]
[1688335026329,0.049058,30575.0,30574.0,0.2477]
[1688335026530,0.04314723,30575.0,30574.0,0.267323]
[1688335026731,0.04954564,30576.0,30574.0,0.29524337]
[1688335027043,0.04954564,30576.0,30575.0,0.267822]
[1688335027232,0.04954564,30576.0,30575.0,0.28601359]
[1688335028428,0.00049064,30576.0,30575.0,0.29251359]
[1688335028629,0.02011264,30576.0,30575.0,0.29251359]
[1688335030547,0.02011264,30576.0,30575.0,0.65331359]
[1688335030749,0.00049064,30576.0,30575.0,0.65331359]
[1688335033647,0.00049064,30576.0,30575.0,0.64681359]
[1688335034034,0.00049064,30576.0,30575.0,0.65604043]
[1688335034449,0.0011296,30576.0,30575.0,0.65604043]
[1688335035350,0.0011296,30576.0,30575.0,0.97414043]
[1688335044357,0.00049064,30576.0,30575.0,0.97414043]
[1688335057567,0.03896209,30576.0,30575.0,0.59514884]
[1688335058453,0.05719178,30576.0,30575.0,0.59514884]
[1688335058655,0.03896209,30576.0,30575.0,0.59514884]
[1688335059452,0.05719178,30576.0,30575.0,0.59514884]
[1688335063062,0.03896209,30576.0,30575.0,0.59514884]
[1688335066061,0.02011264,30576.0,30575.0,0.59514884]
[1688335068165,0.02011264,30576.0,30575.0,0.61334043]
[1688335068672,0.02011264,30576.0,30575.0,0.59514884]
[1688335070571,0.02011264,30576.0,30575.0,0.61334043]
[1688335070959,0.02011264,30576.0,30575.0,0.61340043]
[1688335071863,0.02011264,30576.0,30575.0,0.59520884]
[1688335073467,0.02011264,30576.0,30575.0,0.61340043]
[1688335074170,0.02011264,30576.0,30575.0,0.97420043]
[1688335077574,0.02011264,30576.0,30575.0,0.95600884]
[1688335078074,0.02011264,30576.0,30575.0,0.97420043]
[1688335078474,0.02011264,30576.0,30575.0,0.61340043]
[1688335079166,0.02011264,30576.0,30575.0,0.59520884]
[1688335079472,0.02011264,30576.0,30575.0,0.61340043]
[1688335083283,0.02011264,30576.0,30575.0,0.97420043]
[1688335089980,0.02011264,30576.0,30575.0,0.61340043]
[1688335090180,0.02011264,30576.0,30575.0,0.97420043]
[1688335094785,0.02011264,30576.0,30575.0,0.61340043]
[1688335095185,0.02011264,30576.0,30575.0,0.97420043]
[1688335098093,0.02011264,30576.0,30575.0,0.61340043]
[1688335098290,0.02011264,30576.0,30575.0,0.95600884]
[1688335098592,0.05719178,30576.0,30575.0,0.95600884]
[1688335098794,0.03896209,30576.0,30575.0,0.95600884]
[1688335100086,0.02011264,30576.0,30575.0,0.95600884]
[1688335100796,0.02011264,30576.0,30575.0,0.97420043]
[1688335101801,0.02011264,30576.0,30575.0,0.61340043]
[1688335103187,0.02011264,30576.0,30575.0,0.59520884]
[1688335103387,0.02011264,30576.0,30575.0,0.61340043]
[1688335104397,0.02011264,30576.0,30575.0,0.59520884]
[1688335104616,0.26831264,30576.0,30575.0,6e-05]
[1688335104796,0.27271264,30576.0,30572.0,0.35825848]
[1688335104990,0.247,30573.0,30572.0,0.27333423]
[1688335105285,0.30370214,30573.0,30572.0,0.27333423]
[1688335111593,0.66450214,30573.0,30572.0,0.27333423]
[1688335112399,0.66450214,30573.0,30572.0,0.27812435]
[1688335114594,0.30370214,30573.0,30572.0,0.27812435]
[1688335132315,0.30364214,30573.0,30572.0,0.27812435]
[1688335132613,0.30490214,30573.0,30572.0,0.27912435]
[1688335140119,0.66570214,30573.0,30572.0,0.27912435]
[1688335142523,0.41750214,30573.0,30572.0,0.27912435]
[1688335145424,0.41750214,30573.0,30572.0,0.29874735]
[1688335147424,0.380423,30573.0,30572.0,0.29874735]
[1688335148417,0.380423,30573.0,30572.0,0.31693894]
[1688335152325,0.380423,30573.0,30572.0,0.29874735]
[1688335153529,0.019623,30573.0,30572.0,0.29874735]
[1688335154027,0.019623,30573.0,30572.0,0.31693894]
[1688335154229,0.019623,30573.0,30572.0,0.29874735]
[1688335154630,0.019623,30573.0,30572.0,0.31693894]
[1688335155530,0.019623,30573.0,30572.0,0.29874735]
[1688335156131,0.019623,30573.0,30572.0,0.31693894]
[1688335156327,0.019623,30573.0,30572.0,0.29874735]
[1688335156833,0.019623,30573.0,30572.0,0.31693894]
[1688335157022,0.019623,30573.0,30572.0,0.29874735]
[1688335157827,0.019623,30573.0,30572.0,0.31693894]
[1688335158037,0.019623,30573.0,30572.0,0.29874735]
[1688335170245,0.03847245,30573.0,30572.0,0.29874735]
[1688335175142,1.16563174,30575.0,30572.0,1.66604735]
[1688335175143,0.55278479,30575.0,30572.0,1.66604735]
[1688335175447,0.05936164,30576.0,30574.0,0.267122]
[1688335175635,0.05936164,30576.0,30575.0,0.64531359]
[1688335175835,0.00049064,30576.0,30575.0,0.64531359]
[1688335176042,0.00049064,30576.0,30575.0,0.64850743]
[1688335182247,0.02011164,30576.0,30575.0,0.64850743]
[1688335183447,0.00049064,30576.0,30575.0,0.64850743]
[1688335188658,0.00049064,30576.0,30575.0,0.28770743]
[1688335188859,0.00049064,30576.0,30575.0,0.64850743]
[1688335191557,0.02011164,30576.0,30575.0,0.64850743]
[1688335193761,0.02011164,30576.0,30575.0,0.64856743]
[1688335194958,0.02011164,30576.0,30575.0,0.28776743]
[1688335195356,0.02011164,30576.0,30575.0,0.64856743]
[1688335197760,0.02011164,30576.0,30575.0,1.28776743]
[1688335197969,0.02011164,30576.0,30575.0,1.64856743]
[1688335201370,0.00049064,30576.0,30575.0,1.64856743]
[1688335201671,0.065394,30581.0,30579.0,1.2471]
[1688335201860,0.4982384,30582.0,30580.0,0.65539742]
[1688335202165,0.4982384,30582.0,30581.0,0.2467]
[1688335202369,0.4982384,30582.0,30581.0,0.28450959]
[1688335202672,0.48895157,30582.0,30581.0,0.63930959]
[1688335202872,0.00049049,30585.0,30583.0,1.0]
[1688335203060,0.00049049,30585.0,30584.0,0.64540759]
[1688335204197,0.56694616,30590.0,30589.0,1.0]
[1688335204198,0.22673688,30590.0,30589.0,1.0]
[1688335204374,0.27406986,30591.0,30589.0,1.628113]
[1688335204581,0.22673688,30593.0,30590.0,0.2482]
[1688335204780,0.0001788,30594.0,30592.0,0.6085]
[1688335204956,0.0197888,30594.0,30593.0,0.26781]
[1688335205465,0.0001788,30594.0,30593.0,0.28600159]
[1688335206064,0.00357949,30594.0,30593.0,0.28600159]
[1688335206472,0.00357949,30594.0,30593.0,1.28600159]
[1688335207168,0.00357949,30594.0,30593.0,1.26781]
[1688335207369,0.63218849,30594.0,30593.0,1.01961]
[1688335208077,0.66926763,30594.0,30593.0,1.01961]
[1688335208262,0.0065,30593.0,30591.0,0.2482]
[1688335208458,0.267811,30592.0,30591.0,0.2482]
[1688335208661,0.28666045,30592.0,30591.0,0.2482]
[1688335208966,0.30489014,30592.0,30591.0,0.2482]
[1688335214963,0.30489014,30592.0,30591.0,0.2468]
[1688335219098,0.019611,30592.0,30591.0,0.26499159]
[1688335219371,0.42707507,30597.0,30593.0,1.0]
[1688335219372,0.019609,30596.0,30593.0,1.0]
[1688335219578,0.019609,30596.0,30595.0,0.267109]
[1688335219880,0.0004903,30597.0,30595.0,0.267109]
[1688335220177,0.0004903,30597.0,30596.0,0.2482]
[1688335220377,0.0004903,30597.0,30596.0,0.28599959]
[1688335220678,0.00647418,30597.0,30596.0,0.28599959]
[1688335222274,0.00647418,30597.0,30596.0,0.64679959]
[1688335225279,0.00647418,30597.0,30596.0,0.95159959]
[1688335231596,0.00647418,30597.0,30596.0,0.59079959]
[1688335231887,0.00647418,30597.0,30596.0,0.95159959]
[1688335232590,0.00647418,30597.0,30596.0,0.933408]
[1688335232791,0.00647418,30597.0,30596.0,0.95159959]
[1688335232984,0.00647418,30597.0,30596.0,0.97790365]
[1688335236694,0.02608118,30597.0,30596.0,0.97790365]